bitfinex/quotes_BTCUSD_20250802
["timestamp","ask_amount","ask_price","bid_price","bid_amount"]
[1754104522128,0.57203121,114060.0,114050.0,0.52016747]
[1754104523564,0.59838821,114060.0,114050.0,0.52016747]
[1754104528150,0.59838821,114060.0,114050.0,0.034349]
[1754104528361,0.59838821,114060.0,114050.0,0.52012747]
[1754104531084,0.59838821,114060.0,114050.0,0.38620747]
[1754104531299,0.59838821,114060.0,114050.0,0.52012747]
[1754104538027,0.59838821,114060.0,114050.0,0.38620747]
[1754104538210,0.59838821,114060.0,114050.0,0.52008747]
[1754104544544,0.59838821,114060.0,114050.0,0.52004747]
[1754104546716,0.6825881,114060.0,114050.0,0.034349]
[1754104546935,1.82014504,114060.0,114050.0,0.001229]
[1754104547369,2.41287504,114060.0,114050.0,0.001229]
[1754104548004,7.41287504,114060.0,114050.0,0.001229]
[1754104548250,7.41287504,114060.0,114050.0,0.000229]
[1754104548466,7.49707493,114060.0,114050.0,0.000229]
[1754104548678,7.75847935,114060.0,114050.0,0.000229]
[1754104550153,7.73952395,114060.0,114050.0,0.000229]
[1754104550363,7.75845955,114060.0,114050.0,0.000229]
[1754104551253,7.73952395,114060.0,114050.0,0.000229]
[1754104551715,7.75845195,114060.0,114050.0,0.000229]
[1754104551939,7.67525206,114060.0,114050.0,0.000229]
[1754104552169,7.65632406,114060.0,114050.0,0.000229]
[1754104553419,2.65632406,114060.0,114050.0,0.000229]
[1754104553644,7.65632406,114060.0,114050.0,0.000229]
[1754104556503,0.47537706,114040.0,114030.0,0.07327334]
[1754104556706,0.69341695,114040.0,114030.0,0.07535334]
[1754104557148,0.73350632,114040.0,114030.0,0.07535334]
[1754104558538,0.73350632,114040.0,114030.0,0.10179334]
[1754104558744,0.81770621,114040.0,114030.0,0.10179334]
[1754104559399,0.73350632,114040.0,114030.0,0.10279334]
[1754104559945,0.19008937,114040.0,114030.0,0.80642622]
[1754104560144,0.19008937,114040.0,114030.0,0.80542622]
[1754104560145,0.33910043,114040.0,114030.0,0.80542622]
[1754104560354,0.33910043,114040.0,114030.0,0.10170928]
[1754104560564,0.13954258,114040.0,114030.0,0.80542622]
[1754104561026,0.13954258,114040.0,114030.0,0.45356775]
[1754104561458,0.14054258,114040.0,114030.0,0.45356775]
[1754104563676,0.001,114040.0,114030.0,0.864167]
[1754104568235,0.001,114040.0,114030.0,0.80542622]
[1754104570535,0.75468109,114060.0,114030.0,0.80542622]
[1754104570738,0.70516493,114060.0,114050.0,0.35185847]
[1754104570950,0.83896493,114060.0,114050.0,0.38341847]
[1754104572421,0.83896493,114060.0,114050.0,0.03156]
[1754104572607,0.83896493,114060.0,114050.0,0.38341847]
[1754104573467,0.83996493,114060.0,114050.0,0.38341847]
[1754104576174,0.92416482,114060.0,114050.0,0.38341847]
[1754104576966,0.83996493,114060.0,114050.0,0.38341847]
[1754104583446,0.81360493,114060.0,114050.0,0.38341847]
[1754104597980,0.81092493,114060.0,114050.0,0.38341847]
[1754104598142,0.80772493,114060.0,114050.0,0.38341847]
[1754104599276,0.79400236,114060.0,114050.0,0.38341847]
[1754104599709,0.79668236,114060.0,114050.0,0.38341847]
[1754104611573,0.79668236,114060.0,114050.0,0.03156]
[1754104611713,0.79668236,114060.0,114050.0,0.38341847]
[1754104617314,0.79668236,114060.0,114050.0,0.03156]
[1754104617511,0.79668236,114060.0,114050.0,0.38341847]
[1754104617718,0.79668236,114060.0,114050.0,0.03156]
[1754104617929,1.14854083,114060.0,114050.0,0.02948]
[1754104618122,1.23274072,114060.0,114050.0,0.02948]
[1754104618504,0.88088225,114060.0,114050.0,0.02948]
[1754104619307,0.79668236,114060.0,114050.0,0.02948]
[1754104620669,0.79668236,114060.0,114050.0,0.38133847]
[1754104620874,0.79668236,114060.0,114050.0,0.38349847]
[1754104621686,0.79668236,114060.0,114050.0,0.03164]
[1754104621900,0.79668236,114060.0,114050.0,0.38349847]
[1754104636317,0.66288236,114060.0,114050.0,0.38349847]
[1754104636554,0.52816886,114060.0,114050.0,0.38349847]
[1754104637731,0.39456886,114060.0,114050.0,0.38349847]
[1754104638346,0.56991516,114060.0,114050.0,0.38349847]
[1754104638618,0.56588093,114060.0,114050.0,0.38349847]
[1754104638743,0.69948093,114060.0,114050.0,0.38349847]
[1754104645267,0.17536168,114050.0,114040.0,0.13364]
[1754104645491,0.17536168,114050.0,114040.0,0.51208847]
[1754104645714,0.17536168,114050.0,114040.0,0.51409847]
[1754104645920,0.69948093,114060.0,114040.0,0.51409847]
[1754104646131,0.69948093,114060.0,114050.0,0.35507847]
[1754104646346,0.69948093,114060.0,114050.0,0.38367847]
[1754104646988,0.69848093,114060.0,114050.0,0.38367847]
[1754104648206,0.69948093,114060.0,114050.0,0.38367847]
[1754104660666,0.69948093,114060.0,114050.0,0.03182]
[1754104660908,0.69948093,114060.0,114050.0,0.38367847]
[1754104674133,0.86788071,114060.0,114050.0,0.02981]
[1754104674353,0.17537493,114050.0,114040.0,0.51514847]
[1754104674572,0.17537706,114040.0,114030.0,0.06995928]
[1754104674785,0.17539244,114030.0,114020.0,0.02965]
[1754104675042,0.66073091,114030.0,114020.0,0.02965]
[1754104675270,0.66073091,114030.0,114020.0,0.00315]
[1754104675556,0.17540782,114020.0,114010.0,0.58503181]
[1754104675782,0.17540782,114020.0,114010.0,0.45371181]
[1754104676005,0.17540782,114020.0,114010.0,0.58719181]
[1754104676900,0.17540782,114020.0,114010.0,0.58867089]
[1754104677966,0.41943933,114030.0,114010.0,0.62523216]
[1754104678164,0.19787007,114040.0,114020.0,0.38150847]
[1754104678368,0.44191396,114040.0,114030.0,0.35401847]
[1754104678775,0.24951115,114040.0,114030.0,0.38366847]
[1754104679197,0.42491675,114040.0,114030.0,0.38366847]
[1754104679428,0.42591675,114040.0,114030.0,0.38366847]
[1754104680183,0.4346856,114040.0,114030.0,0.38366847]
[1754104680650,0.4336856,114040.0,114030.0,0.38366847]
[1754104681112,0.4346856,114040.0,114030.0,0.38366847]
[1754104686334,0.4346856,114040.0,114030.0,0.55551532]
[1754104686758,0.42921834,114040.0,114030.0,0.55551532]
[1754104687445,0.42921834,114040.0,114030.0,0.51714847]
[1754104696206,0.34501845,114040.0,114030.0,0.51714847]
[1754104696872,0.31865445,114040.0,114030.0,0.51714847]
[1754104699477,0.33476445,114040.0,114030.0,0.13348]
[1754104699880,0.33476445,114040.0,114030.0,0.13663]
[1754104700054,0.31865445,114040.0,114030.0,0.13663]
[1754104700259,0.31865445,114040.0,114030.0,0.02965]
[1754104700483,0.31865445,114040.0,114030.0,0.38150847]
[1754104700941,0.31865445,114040.0,114030.0,0.02965]
[1754104701203,0.31865445,114040.0,114030.0,0.38150847]
[1754104704196,0.40285434,114040.0,114030.0,0.00315]
[1754104704400,0.17540563,114030.0,114020.0,0.51494847]
[1754104704608,0.17540563,114030.0,114020.0,0.51710847]
[1754104706006,0.30884563,114030.0,114020.0,0.51710847]
[1754104710037,0.30884563,114030.0,114020.0,0.16525]
[1754104710245,0.3029114,114030.0,114020.0,0.16525]
[1754104710453,0.3029114,114030.0,114020.0,0.51710847]
[1754104712952,0.09869171,114030.0,114020.0,0.51710847]
[1754104713385,0.27153734,114030.0,114020.0,0.51710847]
[1754104715301,0.27153734,114030.0,114020.0,0.57807209]
[1754104715926,0.27153734,114030.0,114020.0,0.51710847]
[1754104724856,0.30880563,114030.0,114020.0,0.51710847]
[1754104728902,0.1334,114030.0,114020.0,0.51710847]
[1754104730971,0.40177434,114040.0,114020.0,0.51710847]
[1754104731171,0.40177434,114040.0,114030.0,0.35185847]
[1754104731464,0.40177434,114040.0,114030.0,0.38276847]
[1754104731867,0.40177434,114040.0,114030.0,0.38475847]
[1754104732349,0.40277434,114040.0,114030.0,0.38475847]
[1754104732569,0.40377434,114040.0,114030.0,0.38475847]
[1754104732824,0.40177434,114040.0,114030.0,0.38475847]
[1754104733253,0.40377434,114040.0,114030.0,0.38475847]
[1754104735467,0.40377434,114040.0,114030.0,0.0329]
[1754104735683,0.40377434,114040.0,114030.0,0.38475847]
[1754104735890,0.40645434,114040.0,114030.0,0.38475847]
[1754104741826,0.40645434,114040.0,114030.0,0.38475847]
[1754104742035,0.40645434,114040.0,114030.0,0.0329]
[1754104742896,0.40645434,114040.0,114030.0,0.38475847]
[1754104743303,0.40645434,114040.0,114030.0,0.0329]
[1754104743521,0.40645434,114040.0,114030.0,0.38475847]
[1754104747102,0.40645434,114040.0,114030.0,0.0329]
[1754104747717,0.75831281,114040.0,114030.0,0.0329]
[1754104748048,0.40645434,114040.0,114030.0,0.0329]
[1754104749675,0.75831281,114040.0,114030.0,0.0329]
[1754104751619,0.40645434,114040.0,114030.0,0.0329]
[1754104751827,0.75831281,114040.0,114030.0,0.0329]
[1754104752184,0.77203585,114040.0,114030.0,0.0329]
[1754104753017,0.56200959,114040.0,114030.0,0.0329]
[1754104753456,0.73741519,114040.0,114030.0,0.0329]
[1754104753960,0.74618404,114040.0,114030.0,0.0329]
[1754104755257,0.732461,114040.0,114030.0,0.0329]
[1754104756577,0.17539244,114030.0,114020.0,0.03043]
[1754104756782,0.25959233,114030.0,114020.0,0.03043]
[1754104757040,0.25959233,114030.0,114020.0,0.03247]
[1754104760942,0.25959233,114030.0,114020.0,0.03043]
[1754104760943,0.7614508,114030.0,114020.0,0.03043]
[1754104761178,0.40959233,114030.0,114020.0,0.03043]
[1754104764915,0.52015822,114030.0,114020.0,0.03043]
[1754104765184,0.52015822,114030.0,114020.0,0.00322]
[1754104765805,0.43595833,114030.0,114020.0,0.03044]
[1754104769420,0.40959233,114030.0,114020.0,0.03044]
[1754104775964,0.43595833,114030.0,114020.0,0.03044]
[1754104777481,0.43343833,114030.0,114020.0,0.03044]
[1754104778486,0.43343833,114030.0,114010.0,0.16422908]
[1754104778487,0.17540782,114020.0,114010.0,0.16422908]
[1754104778695,0.17540782,114020.0,114010.0,0.03291908]
[1754104779050,0.17540782,114020.0,114010.0,0.38477755]
[1754104779241,0.18913235,114020.0,114010.0,0.38477755]
[1754104779930,0.18913235,114020.0,114010.0,0.38677755]
[1754104780368,0.18913235,114020.0,114010.0,0.38777755]
[1754104780819,0.32241235,114020.0,114010.0,0.38777755]
[1754104781448,0.32241235,114020.0,114010.0,0.03591908]
[1754104781663,0.32241235,114020.0,114010.0,0.38777755]
[1754104782145,0.30868782,114020.0,114010.0,0.38777755]
[1754104786465,0.30868782,114020.0,114010.0,0.03591908]
[1754104787126,0.4770876,114020.0,114010.0,0.03591908]
[1754104787341,0.39288771,114020.0,114010.0,0.03394908]
[1754104787542,0.41925571,114020.0,114010.0,0.03394908]
[1754104787966,0.41925571,114020.0,114010.0,0.03591908]
[1754104789061,0.41925571,114020.0,114010.0,0.03391908]
[1754104789522,0.41925571,114020.0,114010.0,0.03291908]
[1754104792560,0.75925571,114020.0,114010.0,0.03291908]
[1754104804612,0.8434556,114020.0,114010.0,0.03291908]
[1754104804831,0.75925571,114020.0,114010.0,0.03291908]
[1754104807285,1.26111418,114020.0,114010.0,0.00372908]
[1754104807484,1.27772418,114020.0,114010.0,0.00047908]
[1754104808539,6.27772418,114020.0,114010.0,0.00047908]
[1754104808754,6.36292407,114020.0,114010.0,0.00047908]
[1754104809384,6.36392407,114020.0,114010.0,0.00047908]
[1754104809597,1.36392407,114020.0,114010.0,0.00047908]
[1754104809806,6.27972418,114020.0,114010.0,0.00047908]
[1754104811069,6.29345005,114020.0,114010.0,0.00047908]
[1754104811719,6.49345005,114020.0,114010.0,0.00047908]
[1754104811946,6.54619005,114020.0,114010.0,0.00047908]
[1754104812174,6.54619005,114020.0,114010.0,0.00358908]
[1754104813031,6.19433158,114020.0,114010.0,0.00358908]
[1754104813242,6.17772158,114020.0,114010.0,0.02932908]
[1754104816431,6.52958005,114020.0,114010.0,0.02932908]
[1754104816644,6.52958005,114020.0,114010.0,0.00358908]
[1754104816848,6.61377994,114020.0,114010.0,0.00358908]
[1754104818232,6.34478726,114020.0,114010.0,0.02932908]
[1754104818439,6.52019508,114020.0,114010.0,0.02932908]
[1754104818657,6.16833661,114020.0,114010.0,0.02932908]
[1754104819653,1.04444158,114020.0,114010.0,0.38319755]
[1754104819884,1.11121571,114020.0,114010.0,0.45324089]
[1754104821012,1.11121571,114020.0,114010.0,0.53385788]
[1754104821222,1.11121571,114020.0,114010.0,0.45324089]
[1754104821706,0.97797571,114020.0,114010.0,0.45324089]
[1754104821910,0.13524,114020.0,114010.0,0.45324089]
[1754104822725,0.002,114020.0,114010.0,0.45324089]
[1754104822907,0.002,114020.0,114010.0,0.58648089]
[1754104825808,0.002,114020.0,114010.0,0.60261555]
[1754104826011,0.002,114020.0,114010.0,0.58648089]
[1754104828050,0.002,114020.0,114010.0,0.51643755]
[1754104829389,0.17740782,114020.0,114010.0,0.51643755]
[1754104829602,0.17740782,114020.0,114010.0,0.16453908]
[1754104830244,0.17740782,114020.0,114010.0,0.51639755]
[1754104831574,0.17740782,114020.0,114010.0,0.38319755]
[1754104833266,0.17740782,114020.0,114010.0,0.03133908]
[1754104833476,0.17740782,114020.0,114010.0,0.38319755]
[1754104835188,0.26160771,114020.0,114010.0,0.03133908]
[1754104837428,0.26160771,114020.0,114010.0,0.38319755]
[1754104841487,0.31436771,114020.0,114010.0,0.38319755]
[1754104841700,0.26160771,114020.0,114010.0,0.38319755]
[1754104843410,0.26160771,114020.0,114010.0,0.03133908]
[1754104843638,0.26160771,114020.0,114010.0,0.38319755]
[1754104844238,0.26160771,114020.0,114010.0,0.03133908]
[1754104844501,0.26160771,114020.0,114010.0,0.38319755]
[1754104845130,0.08019638,114020.0,114010.0,0.40201203]
[1754104845356,0.026368,114030.0,114020.0,0.24545116]
[1754104845573,0.38677068,114060.0,114030.0,0.35744902]
[1754104845574,0.18137748,114060.0,114030.0,0.35744902]
[1754104845785,0.18137748,114060.0,114050.0,0.35185847]
[1754104846230,0.20947748,114060.0,114050.0,0.48509847]
[1754104846450,0.21151748,114060.0,114050.0,0.35185847]
[1754104846661,0.21151748,114060.0,114050.0,0.48509847]
[1754104846867,0.21151748,114060.0,114050.0,0.48513847]
[1754104847080,0.20952535,114060.0,114050.0,0.48513847]
[1754104848998,0.20952535,114060.0,114050.0,0.13328]
[1754104849200,0.20952535,114060.0,114050.0,0.13528]
[1754104849437,0.20952535,114060.0,114050.0,0.18961896]
[1754104849628,0.21220535,114060.0,114050.0,0.18961896]
[1754104851129,0.21220535,114060.0,114050.0,0.13628]
[1754104851565,0.21424535,114060.0,114050.0,0.003]
[1754104851798,6.34510119,114060.0,114050.0,0.003]
[1754104852643,5.94699154,114060.0,114050.0,0.002]
[1754104852862,5.94799154,114060.0,114050.0,0.002]
[1754104853484,5.9617138,114060.0,114050.0,0.002]
[1754104854284,5.9607138,114060.0,114050.0,0.002]
[1754104854479,0.17537706,114040.0,114030.0,0.53130965]
[1754104854706,0.17537706,114040.0,114020.0,0.60139299]
[1754104854926,0.20606706,114040.0,114020.0,0.65515962]
[1754104855144,0.21978981,114040.0,114020.0,0.65515962]
[1754104855986,0.21978981,114040.0,114020.0,0.65615962]
[1754104856408,0.21978981,114040.0,114030.0,0.1332]
[1754104856661,0.22193981,114040.0,114030.0,0.1332]
[1754104857970,0.22193981,114040.0,114030.0,0.1342]
[1754104864694,0.22193981,114040.0,114030.0,0.001]
[1754104864894,1.17740935,114040.0,114030.0,0.001]
[1754104865110,6.23016935,114040.0,114030.0,0.001]
[1754104865556,6.28273504,114040.0,114030.0,0.001]
[1754104866641,5.88462539,114040.0,114030.0,0.001]
[1754104866888,6.28273504,114040.0,114030.0,0.001]
[1754104867997,5.88462539,114040.0,114030.0,0.001]
[1754104868232,5.96882528,114040.0,114030.0,0.001]
[1754104869319,5.88462539,114040.0,114030.0,0.001]
[1754104870629,6.28273504,114040.0,114030.0,0.001]
[1754104872243,0.51540782,114020.0,114010.0,0.46815299]
[1754104872501,0.64856782,114020.0,114010.0,0.46815299]
[1754104872761,0.67925782,114020.0,114010.0,0.46815299]
[1754104873022,0.692983,114020.0,114010.0,0.46815299]
[1754104873624,0.692983,114020.0,114010.0,0.46863207]
[1754104874053,0.692983,114020.0,114010.0,0.46963207]
[1754104874236,0.67925782,114020.0,114010.0,0.46963207]
[1754104874648,0.67925782,114020.0,114010.0,0.07352242]
[1754104876744,0.68140782,114020.0,114010.0,0.07352242]
[1754104877722,0.68140782,114020.0,114010.0,0.47163207]
[1754104878389,0.69513301,114020.0,114010.0,0.07352242]
[1754104880524,0.69513301,114020.0,114010.0,0.47163207]
[1754104881513,0.69513301,114020.0,114010.0,0.07352242]
[1754104881899,0.74789301,114020.0,114010.0,0.07352242]
[1754104882103,0.69513301,114020.0,114010.0,0.07352242]
[1754104883169,0.69513301,114020.0,114010.0,0.00347908]
[1754104885235,1.26164244,114020.0,114010.0,0.00347908]
[1754104885438,1.26164244,114020.0,114010.0,0.00047908]
[1754104885604,0.86353279,114020.0,114010.0,0.00047908]
[1754104885800,0.7793329,114020.0,114010.0,0.00147908]
[1754104886927,0.7803329,114020.0,114010.0,0.00147908]
[1754104887332,0.7803329,114020.0,114010.0,0.00047908]
[1754104892017,6.17844255,114020.0,114010.0,0.00047908]
[1754104893600,5.7803329,114020.0,114010.0,0.00047908]
[1754104896206,5.86453279,114020.0,114010.0,0.00047908]
[1754104896418,5.7803329,114020.0,114010.0,0.00047908]
[1754104899115,6.17844255,114020.0,114010.0,0.00047908]
[1754104900526,1.17844255,114020.0,114010.0,0.00047908]
[1754104900880,6.17844255,114020.0,114010.0,0.00047908]
[1754104901854,6.23120255,114020.0,114010.0,0.00047908]
[1754104903902,6.31540244,114020.0,114010.0,0.00047908]
[1754104904481,6.23120255,114020.0,114010.0,0.00047908]
[1754104906944,6.28142055,114020.0,114010.0,0.00047908]
[1754104913318,6.28062055,114020.0,114010.0,0.00047908]
[1754104914157,1.28062055,114020.0,114010.0,0.00047908]
[1754104914598,6.28062055,114020.0,114010.0,0.00047908]
[1754104916874,6.36482044,114020.0,114010.0,0.00047908]
[1754104917220,6.28062055,114020.0,114010.0,0.00047908]
[1754104919571,6.28330055,114020.0,114010.0,0.00047908]
[1754104921250,5.8349729,114020.0,114010.0,0.00047908]
[1754104921466,6.28330055,114020.0,114010.0,0.00047908]
[1754104922283,5.8349729,114020.0,114010.0,0.00047908]
[1754104922496,6.28330055,114020.0,114010.0,0.00047908]
[1754104922708,6.36750044,114020.0,114010.0,0.00047908]
[1754104925220,6.28330055,114020.0,114010.0,0.00047908]
[1754104929689,5.8350129,114020.0,114010.0,0.00047908]
[1754104929892,0.8350129,114020.0,114010.0,0.00047908]
[1754104931301,1.28334055,114020.0,114010.0,0.00047908]
[1754104937603,1.07522636,114020.0,114010.0,0.00047908]
[1754104937807,1.25063418,114020.0,114010.0,0.00047908]
[1754104945874,1.33483407,114020.0,114010.0,0.00047908]
[1754104946109,1.27700618,114020.0,114010.0,0.00047908]
[1754104955605,0.82867853,114020.0,114010.0,0.00047908]
[1754104955956,1.27700618,114020.0,114010.0,0.00047908]
[1754104956564,0.82867853,114020.0,114010.0,0.00047908]
[1754104956818,1.27700618,114020.0,114010.0,0.00047908]
[1754104963471,0.82867853,114020.0,114010.0,0.00047908]
[1754104963690,1.27700618,114020.0,114010.0,0.00047908]
[1754104968971,1.36120607,114020.0,114010.0,0.00047908]
[1754104969189,6.59764013,114020.0,114010.0,0.00047908]
[1754104969413,6.59764013,114020.0,114000.0,0.00107051]
[1754104969414,0.5,114010.0,114000.0,0.00107051]
[1754104969620,0.66546938,113980.0,113970.0,0.00131561]
[1754104969832,0.88492927,113980.0,113970.0,0.00136353]
[1754104970275,1.0448213,113980.0,113970.0,0.00136353]
[1754104970488,1.47968597,113980.0,113970.0,0.00136353]
[1754104972194,1.50665659,113980.0,113970.0,0.00136353]
[1754104972408,1.50765659,113980.0,113970.0,0.00136353]
[1754104975795,1.51650349,113980.0,113970.0,0.00136353]
[1754104976163,1.60070338,113980.0,113970.0,0.00136353]
[1754104979220,0.66550017,113960.0,113950.0,0.51721452]
[1754104979427,0.79866017,113960.0,113950.0,0.51925452]
[1754104980559,0.82504217,113960.0,113950.0,0.51925452]
[1754104980767,0.82504217,113960.0,113950.0,0.52225452]
[1754104981561,0.85233217,113960.0,113950.0,0.52225452]
[1754104983367,0.85233217,113960.0,113950.0,0.52025452]
[1754104983576,0.85233217,113960.0,113950.0,0.51925452]
[1754104983768,0.82504217,113960.0,113950.0,0.07192687]
[1754104984013,0.82504217,113960.0,113950.0,0.52185452]
[1754104984235,0.82504217,113960.0,113950.0,0.52250452]
[1754104984685,0.026382,113960.0,113950.0,0.52185452]
[1754104984890,0.63316,113970.0,113950.0,0.65566452]
[1754104985106,1.01548516,113970.0,113960.0,0.44832765]
[1754104985318,1.01548516,113970.0,113960.0,0.45261765]
[1754104985760,1.04186416,113970.0,113960.0,0.00364]
[1754104985975,1.06915416,113970.0,113960.0,0.45036765]
[1754104986187,1.28655405,113970.0,113960.0,0.45036765]
[1754104986902,1.28755405,113970.0,113960.0,0.45036765]
[1754104987094,1.20335416,113970.0,113960.0,0.45036765]
[1754104987289,1.20235416,113970.0,113960.0,0.45036765]
[1754104987668,1.20335416,113970.0,113960.0,0.45036765]
[1754104989352,0.70335416,113970.0,113960.0,0.45036765]
[1754104992269,0.70659416,113970.0,113960.0,0.45036765]
[1754104992684,0.70869416,113970.0,113960.0,0.45036765]
[1754104994198,0.79289405,113970.0,113960.0,0.45036765]
[1754104994406,0.79289405,113970.0,113940.0,0.44988837]
[1754104994407,0.17551557,113950.0,113940.0,0.44988837]
[1754104994609,0.20280557,113950.0,113940.0,0.58508837]
[1754104994847,0.20280557,113950.0,113940.0,0.53561451]
[1754104995285,0.02729,113950.0,113940.0,0.53561451]
[1754104996105,0.48829148,113960.0,113940.0,0.53661451]
[1754104996255,0.51558148,113960.0,113940.0,0.53661451]
[1754104996662,0.51558148,113960.0,113940.0,0.53861451]
[1754104996861,0.51558148,113960.0,113940.0,0.53561451]
[1754104997319,0.51558148,113960.0,113940.0,0.53661451]
[1754104997766,0.51234148,113960.0,113950.0,0.39885379]
[1754104997972,0.51234148,113960.0,113950.0,0.40089379]
[1754104998656,0.336832,113960.0,113950.0,0.40089379]
[1754104999410,0.37917217,113960.0,113950.0,0.40089379]
[1754104999608,0.37917217,113960.0,113950.0,0.40189379]
[1754104999813,0.18401931,113960.0,113950.0,0.40189379]
[1754105000020,0.18401931,113960.0,113950.0,0.46187132]
[1754105001651,0.18725931,113960.0,113950.0,0.46187132]
[1754105002776,0.18935931,113960.0,113950.0,0.46187132]
[1754105003031,0.18935931,113960.0,113950.0,0.40189379]
[1754105006739,0.18721305,113960.0,113950.0,0.40189379]
[1754105007545,0.18721305,113960.0,113950.0,0.13416]
[1754105011715,0.18721305,113960.0,113950.0,0.53301379]
[1754105011928,0.18721305,113960.0,113950.0,0.53509379]
[1754105012772,0.18721305,113960.0,113950.0,0.59100424]
[1754105012955,0.18721305,113960.0,113950.0,0.53509379]
[1754105017591,0.18721305,113960.0,113950.0,0.13416]
[1754105024842,0.18721305,113960.0,113950.0,0.58284019]
[1754105027614,0.18721305,113960.0,113950.0,0.13416]
[1754105027818,0.18721305,113960.0,113950.0,0.58284019]
[1754105028301,0.18721305,113960.0,113950.0,0.13416]
[1754105028515,0.18721305,113960.0,113950.0,0.58284019]
[1754105030915,0.18721305,113960.0,113950.0,0.13416]
[1754105031120,0.18721305,113960.0,113950.0,0.58284019]
[1754105032918,0.18721305,113960.0,113950.0,0.5990608]
[1754105033139,0.18187305,113960.0,113950.0,0.5990608]
[1754105033576,0.18187305,113960.0,113950.0,0.6215108]
[1754105034015,0.18187305,113960.0,113950.0,0.60737019]
[1754105034266,0.18187305,113960.0,113950.0,0.58492019]
[1754105035999,0.18497305,113960.0,113950.0,0.58492019]
[1754105038845,0.00637288,113960.0,113950.0,0.58492019]
[1754105039494,0.00947288,113960.0,113950.0,0.58492019]
[1754105043223,0.18497305,113960.0,113950.0,0.58492019]
[1754105045396,0.18497305,113960.0,113950.0,0.13524]
[1754105045610,0.18497305,113960.0,113950.0,0.58392019]
[1754105048130,0.18693305,113960.0,113950.0,0.58392019]
[1754105051628,0.01143288,113960.0,113950.0,0.58392019]
[1754105052473,0.18693305,113960.0,113950.0,0.58392019]
[1754105053324,0.18693305,113960.0,113950.0,0.13524]
[1754105053325,0.01143288,113960.0,113950.0,0.13524]
[1754105053486,0.01143288,113960.0,113950.0,0.58392019]
[1754105054921,0.18693305,113960.0,113950.0,0.58392019]
[1754105056974,0.18693305,113960.0,113950.0,0.13524]
[1754105057185,0.18693305,113960.0,113950.0,0.58388019]
[1754105062179,0.23969305,113960.0,113950.0,0.58388019]
[1754105062361,0.18693305,113960.0,113950.0,0.58388019]
[1754105062523,0.18693305,113960.0,113950.0,0.1352]
[1754105062729,0.18693305,113960.0,113950.0,0.58388019]
[1754105067780,0.18693305,113960.0,113950.0,0.45076019]
[1754105068010,0.18693305,113960.0,113950.0,0.58388019]
[1754105069476,0.18693305,113960.0,113950.0,0.45076019]
[1754105069705,0.18693305,113960.0,113950.0,0.58388019]
[1754105072231,0.01143288,113960.0,113950.0,0.58388019]
[1754105074814,0.18693305,113960.0,113950.0,0.58388019]
[1754105077048,0.01143288,113960.0,113950.0,0.58388019]
[1754105079266,1.09157928,113970.0,113950.0,0.58388019]
[1754105079267,0.52072,113970.0,113950.0,0.68859008]
[1754105079491,0.62312,113970.0,113960.0,0.60231019]
[1754105079915,0.62312,113970.0,113960.0,0.60436019]
[1754105080131,0.65079,113970.0,113960.0,0.58385019]
[1754105080535,0.65179,113970.0,113960.0,0.58385019]
[1754105080743,0.65079,113970.0,113960.0,0.58385019]
[1754105080997,0.65179,113970.0,113960.0,0.58385019]
[1754105081453,0.51867,113970.0,113960.0,0.58385019]
[1754105086920,0.001,113970.0,113960.0,1.1152364]
[1754105088498,0.01200545,113980.0,113960.0,1.1152364]
[1754105088717,0.01200545,113980.0,113970.0,1.03048038]
[1754105088924,0.01200545,113980.0,113970.0,1.03253038]
[1754105089357,0.03967545,113980.0,113970.0,1.03253038]
[1754105090465,0.04067545,113980.0,113970.0,1.03253038]
[1754105097499,0.04587545,113980.0,113970.0,1.03253038]
[1754105097774,0.04587545,113980.0,113970.0,0.58385019]
[1754105099620,0.04587545,113980.0,113970.0,0.65050581]
[1754105101827,0.04587545,113980.0,113970.0,0.58385019]
[1754105102231,0.04587545,113980.0,113970.0,1.03253038]
[1754105104293,0.04587545,113980.0,113970.0,0.58385019]
[1754105109505,0.04587545,113980.0,113970.0,0.58317019]
[1754105112449,0.09863545,113980.0,113970.0,0.58317019]
[1754105112614,0.04587545,113980.0,113970.0,0.58317019]
[1754105112813,0.30562273,113990.0,113970.0,0.58317019]
[1754105113089,0.91452254,113990.0,113980.0,0.58176019]
[1754105113308,0.91660254,113990.0,113980.0,0.58176019]
[1754105114026,0.91760254,113990.0,113980.0,0.58176019]
[1754105114448,0.91960254,113990.0,113980.0,0.58176019]
[1754105115067,0.94904254,113990.0,113980.0,0.58176019]
[1754105115840,0.94804254,113990.0,113980.0,0.58176019]
[1754105116260,0.94904254,113990.0,113980.0,0.58176019]
[1754105118921,0.94904254,113990.0,113980.0,0.13308]
[1754105119337,0.94904254,113990.0,113970.0,0.67222821]
[1754105119552,0.94904254,113990.0,113980.0,0.44868019]
[1754105119962,0.94904254,113990.0,113970.0,0.67222821]
[1754105120160,0.94604254,113990.0,113970.0,0.67222821]
[1754105120372,0.94704254,113990.0,113970.0,0.67222821]
[1754105120630,0.94804254,113990.0,113970.0,0.67222821]
[1754105121913,0.94804254,113990.0,113980.0,0.44868019]
[1754105122542,1.00080254,113990.0,113980.0,0.44868019]
[1754105122750,0.94804254,113990.0,113980.0,0.44868019]
[1754105122960,0.94704254,113990.0,113980.0,0.44868019]
[1754105123202,0.94804254,113990.0,113970.0,0.22354802]
[1754105123417,0.94704254,113990.0,113980.0,0.44868019]
[1754105123827,0.94804254,113990.0,113980.0,0.44868019]
[1754105124044,0.94604254,113990.0,113980.0,0.44868019]
[1754105124907,0.94704254,113990.0,113970.0,0.16302]
[1754105125111,0.94604254,113990.0,113980.0,0.44868019]
[1754105125543,0.94704254,113990.0,113980.0,0.44868019]
[1754105125759,0.94804254,113990.0,113980.0,0.44868019]
[1754105126180,0.94704254,113990.0,113980.0,0.44868019]
[1754105126590,0.94804254,113990.0,113980.0,0.44868019]
[1754105126791,0.94704254,113990.0,113980.0,0.44868019]
[1754105127210,0.94804254,113990.0,113980.0,0.44868019]
[1754105127412,0.94704254,113990.0,113980.0,0.44868019]
[1754105127850,0.94804254,113990.0,113980.0,0.44868019]
[1754105136064,0.94804254,113990.0,113970.0,0.61170019]
[1754105136981,0.94704254,113990.0,113970.0,0.61170019]
[1754105137187,0.94604254,113990.0,113970.0,0.61170019]
[1754105137405,0.94704254,113990.0,113970.0,0.61170019]
[1754105137614,0.94804254,113990.0,113970.0,0.61170019]
[1754105138862,0.94804254,113990.0,113970.0,0.65611987]
[1754105139797,0.94804254,113990.0,113970.0,0.61170019]
[1754105142439,0.05646709,113990.0,113980.0,0.00196]
[1754105142656,0.01121705,113990.0,113980.0,0.48144019]
[1754105143314,0.01021705,113990.0,113980.0,0.48144019]
[1754105143552,0.00921705,113990.0,113980.0,0.48144019]
[1754105143776,0.01021705,113990.0,113980.0,0.56664008]
[1754105144001,0.00921705,113990.0,113980.0,0.56664008]
[1754105144484,0.00921705,113990.0,113980.0,0.56764008]
[1754105144695,0.00921705,113990.0,113980.0,0.11895989]